bitfinex/quotes_BTCUSD_20241201
["timestamp","ask_amount","ask_price","bid_price","bid_amount"]
[1733055393408,0.86520911,97226.0,97225.0,4.9e-07]
[1733055394529,0.87120911,97226.0,97225.0,4.9e-07]
[1733055395184,0.87420911,97226.0,97225.0,4.9e-07]
[1733055396559,0.97704057,97226.0,97225.0,4.9e-07]
[1733055396741,0.87420911,97226.0,97225.0,4.9e-07]
[1733055399917,0.62420911,97226.0,97225.0,4.9e-07]
[1733055400298,0.41850311,97226.0,97225.0,4.9e-07]
[1733055400693,0.62420911,97226.0,97225.0,4.9e-07]
[1733055400933,0.62420911,97226.0,97225.0,9e-08]
[1733055419815,0.54510911,97226.0,97225.0,9e-08]
[1733055434195,0.54597311,97226.0,97225.0,9e-08]
[1733055436971,0.53697311,97226.0,97225.0,9e-08]
[1733055437403,0.54997311,97226.0,97225.0,9e-08]
[1733055437606,0.54097311,97226.0,97225.0,9e-08]
[1733055438043,0.54897311,97226.0,97225.0,9e-08]
[1733055438862,0.54497311,97226.0,97225.0,9e-08]
[1733055439313,0.54897311,97226.0,97225.0,9e-08]
[1733055443159,0.54497311,97226.0,97225.0,9e-08]
[1733055443463,0.54197311,97226.0,97225.0,9e-08]
[1733055443788,0.55097311,97226.0,97225.0,9e-08]
[1733055444223,0.54197311,97226.0,97225.0,9e-08]
[1733055444858,0.55097311,97226.0,97225.0,9e-08]
[1733055445271,0.54597311,97226.0,97225.0,9e-08]
[1733055445741,0.55097311,97226.0,97225.0,9e-08]
[1733055446558,0.5472051,97226.0,97225.0,9e-08]
[1733055446765,0.54931405,97226.0,97225.0,9e-08]
[1733055447350,0.56331405,97226.0,97225.0,9e-08]
[1733055449657,0.56331405,97226.0,97214.0,8.9e-07]
[1733055449867,0.355729,97215.0,97214.0,4.6e-07]
[1733055450073,0.4869012,97215.0,97214.0,4.6e-07]
[1733055451106,0.205738,97211.0,97210.0,0.02882646]
[1733055451324,4.31381226,97211.0,97210.0,0.00059485]
[1733055451543,4.31153615,97211.0,97210.0,8.5e-07]
[1733055451757,0.48690715,97211.0,97210.0,8.5e-07]
[1733055451974,0.378754,97203.0,97202.0,5e-08]
[1733055452196,0.48159921,97203.0,97202.0,0.00014357]
[1733055452423,0.48691514,97203.0,97202.0,0.00014357]
[1733055452854,0.48691514,97203.0,97202.0,5.7e-07]
[1733055453925,0.48670153,97203.0,97202.0,5.7e-07]
[1733055457920,0.45943835,97203.0,97202.0,0.00172897]
[1733055458544,4.35760135,97203.0,97202.0,0.00172897]
[1733055459201,4.30611235,97203.0,97202.0,0.00172897]
[1733055459561,4.30911235,97203.0,97202.0,0.00172897]
[1733055460167,4.30611235,97203.0,97202.0,0.00172897]
[1733055460579,4.30911235,97203.0,97202.0,9.7e-07]
[1733055460799,0.46243835,97203.0,97202.0,9.7e-07]
[1733055461220,0.46943835,97203.0,97202.0,9.7e-07]
[1733055461440,0.46243835,97203.0,97202.0,9.7e-07]
[1733055461881,0.46943835,97203.0,97202.0,9.7e-07]
[1733055463008,0.205784,97189.0,97188.0,0.07124475]
[1733055463354,0.38407093,97189.0,97188.0,0.0713045]
[1733055464288,0.38380014,97189.0,97188.0,0.0713045]
[1733055465176,0.02828693,97189.0,97188.0,0.0713045]
[1733055465406,0.23407093,97189.0,97188.0,0.0713045]
[1733055465642,0.38407093,97189.0,97188.0,0.0713045]
[1733055465846,0.38407093,97189.0,97188.0,0.1164045]
[1733055468201,0.38407093,97189.0,97188.0,0.11608374]
[1733055471510,0.38407093,97189.0,97188.0,0.11781214]
[1733055479194,0.38407093,97189.0,97188.0,0.00178815]
[1733055484049,0.38493523,97189.0,97188.0,0.00178815]
[1733055501928,1.30622944,97189.0,97188.0,1.5e-07]
[1733055502137,0.53478044,97189.0,97188.0,1.5e-07]
[1733055502393,0.53890244,97189.0,97188.0,1.5e-07]
[1733055502851,0.61900244,97189.0,97188.0,1.5e-07]
[1733055503885,0.62300244,97189.0,97188.0,1.5e-07]
[1733055505232,0.87300244,97189.0,97188.0,1.5e-07]
[1733055506096,0.87500244,97189.0,97188.0,1.5e-07]
[1733055506320,0.86617872,97189.0,97188.0,1.5e-07]
[1733055510203,0.25,97177.0,97174.0,2.5e-07]
[1733055510445,0.2761,97175.0,97174.0,2.5e-07]
[1733055510848,0.38412731,97175.0,97174.0,2.5e-07]
[1733055512923,0.38812731,97175.0,97174.0,2.5e-07]
[1733055513517,0.39212731,97175.0,97174.0,2.5e-07]
[1733055513722,0.38412731,97175.0,97174.0,2.5e-07]
[1733055514160,0.482426,97169.0,97168.0,8.5e-07]
[1733055514364,0.58527121,97169.0,97168.0,4.6e-07]
[1733055514575,0.59044465,97169.0,97168.0,4.6e-07]
[1733055516691,0.59344465,97169.0,97168.0,4.6e-07]
[1733055517108,0.59044465,97169.0,97168.0,4.6e-07]
[1733055517515,0.59744465,97169.0,97168.0,4.6e-07]
[1733055517770,0.59744465,97169.0,97155.0,0.17941446]
[1733055517771,0.25,97157.0,97155.0,0.17941446]
[1733055518023,3.08396708,97156.0,97155.0,0.13830188]
[1733055518251,3.18095059,97156.0,97155.0,0.09712988]
[1733055519103,3.18095059,97156.0,97155.0,0.07654388]
[1733055519616,3.18495059,97156.0,97155.0,8.8e-07]
[1733055519833,0.59446359,97156.0,97155.0,8.8e-07]
[1733055520048,0.59646359,97156.0,97155.0,8.8e-07]
[1733055520262,0.39060959,97156.0,97148.0,0.19800008]
[1733055520481,0.15,97149.0,97148.0,0.19817846]
[1733055520725,4.64796184,97149.0,97148.0,0.19817846]
[1733055520924,4.65073661,97149.0,97148.0,0.19817846]
[1733055522146,4.65173661,97149.0,97148.0,0.19817846]
[1733055522308,4.65173661,97149.0,97148.0,0.09524346]
[1733055522924,4.65173661,97149.0,97148.0,4.6e-07]
[1733055523139,0.38549761,97149.0,97148.0,4.6e-07]
[1733055523542,0.38449761,97149.0,97148.0,4.6e-07]
[1733055525244,0.39349761,97149.0,97148.0,4.6e-07]
[1733055525429,0.38949761,97149.0,97148.0,4.6e-07]
[1733055525798,0.39849761,97149.0,97148.0,4.6e-07]
[1733055525981,0.39349761,97149.0,97148.0,4.6e-07]
[1733055526183,0.39849761,97149.0,97148.0,4.6e-07]
[1733055527872,0.50149761,97149.0,97148.0,4.6e-07]
[1733055528122,0.39849761,97149.0,97148.0,4.6e-07]
[1733055530316,0.39849761,97149.0,97148.0,0.00172846]
[1733055530730,3.34969861,97149.0,97148.0,0.00172846]
[1733055530929,3.11010261,97149.0,97148.0,0.00172846]
[1733055531240,2.98350261,97149.0,97148.0,0.00172846]
[1733055531486,1.02987061,97149.0,97148.0,0.00172846]
[1733055532860,1.02487061,97149.0,97148.0,0.00172846]
[1733055533059,1.01587061,97149.0,97148.0,0.00172846]
[1733055533297,1.02387061,97149.0,97148.0,0.00172846]
[1733055533498,1.02787061,97149.0,97148.0,0.00172846]
[1733055536082,1.12537061,97149.0,97148.0,0.00172846]
[1733055536679,0.36739761,97149.0,97148.0,0.00172846]
[1733055536930,1.62612661,97149.0,97148.0,0.00172846]
[1733055537378,1.59035661,97149.0,97148.0,0.00172846]
[1733055537605,1.44880361,97149.0,97148.0,0.00172846]
[1733055537883,0.98785961,97149.0,97148.0,0.00172846]
[1733055538113,0.86203961,97149.0,97148.0,0.00172846]
[1733055539282,0.85803961,97149.0,97148.0,0.00172846]
[1733055539513,0.85003961,97149.0,97148.0,0.00172846]
[1733055539732,0.85003961,97149.0,97148.0,0.12952846]
[1733055539733,0.36039761,97149.0,97148.0,0.12952846]
[1733055539980,0.27189761,97149.0,97148.0,0.12952846]
[1733055540202,0.26689761,97149.0,97148.0,0.12952846]
[1733055540419,0.25789761,97149.0,97148.0,0.12952846]
[1733055540668,0.26189761,97149.0,97148.0,0.12952846]
[1733055540897,0.26989761,97149.0,97148.0,0.12952846]
[1733055541124,0.26589761,97149.0,97148.0,0.12952846]
[1733055541360,0.25789761,97149.0,97148.0,0.00172846]
[1733055542016,0.1559166,97149.0,97148.0,0.00172846]
[1733055542244,0.15819412,97149.0,97148.0,0.00172846]
[1733055543188,0.15919412,97149.0,97148.0,0.00172846]
[1733055544159,0.1569166,97149.0,97148.0,0.00172846]
[1733055544387,0.1569166,97149.0,97148.0,0.12952846]
[1733055547948,0.1569166,97149.0,97148.0,0.13952846]
[1733055547949,0.0069166,97149.0,97148.0,0.13952846]
[1733055549291,0.1569166,97149.0,97148.0,0.13952846]
[1733055551890,0.1569166,97149.0,97148.0,0.12952846]
[1733055552133,0.83123396,97149.0,97148.0,0.00172846]
[1733055552341,0.93180181,97149.0,97148.0,0.00172846]
[1733055552550,0.99881358,97149.0,97148.0,0.00172846]
[1733055553443,0.99837306,97149.0,97148.0,0.00172846]
[1733055554136,0.99937306,97149.0,97148.0,0.00172846]
[1733055554378,0.99737306,97149.0,97148.0,0.00172846]
[1733055554815,1.00537306,97149.0,97148.0,0.00172846]
[1733055554946,1.00037306,97149.0,97148.0,0.00172846]
[1733055555364,1.00437306,97149.0,97148.0,0.00172846]
[1733055556191,1.00137306,97149.0,97148.0,0.00172846]
[1733055556620,1.00337306,97149.0,97148.0,0.00172846]
[1733055556824,0.99937306,97149.0,97148.0,0.00172846]
[1733055557272,1.00037306,97149.0,97148.0,0.00172846]
[1733055557502,0.99937306,97149.0,97148.0,0.00172846]
[1733055557921,1.00237306,97149.0,97148.0,0.00172846]
[1733055558131,0.93036129,97149.0,97148.0,0.00172846]
[1733055558555,0.93336129,97149.0,97148.0,0.00172846]
[1733055559613,0.36973229,97149.0,97148.0,0.00172846]
[1733055560092,0.36473229,97149.0,97148.0,0.00172846]
[1733055560489,0.36873229,97149.0,97148.0,0.00172846]
[1733055560753,0.36573229,97149.0,97148.0,0.00172846]
[1733055561551,0.25932129,97149.0,97148.0,0.00172846]
[1733055562721,0.15647608,97149.0,97148.0,0.00172846]
[1733055562934,0.00647608,97149.0,97148.0,0.00172846]
[1733055563194,0.00647608,97149.0,97148.0,0.12642846]
[1733055564272,0.00647608,97149.0,97148.0,0.13642846]
[1733055565792,0.15647608,97149.0,97148.0,0.13642846]
[1733055568613,0.13994418,97149.0,97148.0,0.13642846]
[1733055570157,0.00444657,97149.0,97148.0,0.13642846]
[1733055576247,0.205867,97150.0,97148.0,0.13642846]
[1733055576918,0.0008642,97149.0,97148.0,0.13642846]
[1733055578815,0.0018642,97149.0,97148.0,0.13642846]
[1733055581360,0.0018642,97149.0,97148.0,0.00172846]
[1733055584281,0.00414164,97149.0,97148.0,0.00172846]
[1733055584480,0.15414164,97149.0,97148.0,0.00172846]
[1733055586046,0.98303964,97149.0,97148.0,0.00172846]
[1733055586271,0.9807622,97149.0,97148.0,0.00172846]
[1733055588710,1.08360741,97149.0,97148.0,0.00172846]
[1733055590777,0.94979441,97149.0,97148.0,0.00172846]
[1733055594898,0.95340277,97149.0,97148.0,0.00172846]
[1733055595100,0.30531777,97149.0,97148.0,0.00172846]
[1733055595233,1.70982777,97149.0,97148.0,0.00172846]
[1733055596697,1.70882777,97149.0,97148.0,0.00172846]
[1733055597122,1.71682777,97149.0,97148.0,0.00172846]
[1733055597350,1.71382777,97149.0,97148.0,0.00172846]
[1733055597769,1.70882777,97149.0,97148.0,0.00172846]
[1733055598282,1.71082777,97149.0,97148.0,0.00172846]
[1733055599561,1.71382777,97149.0,97148.0,0.00172846]
[1733055599911,1.71082777,97149.0,97148.0,0.00172846]
[1733055600395,1.71382777,97149.0,97148.0,0.00172846]
[1733055602470,1.71021941,97149.0,97148.0,0.00172846]
[1733055603331,1.38094641,97149.0,97148.0,0.00172846]
[1733055603546,1.20674641,97149.0,97148.0,0.00172846]
[1733055604253,0.94434641,97149.0,97148.0,0.00172846]
[1733055605293,0.94234641,97149.0,97148.0,0.00172846]
[1733055605722,0.30370941,97149.0,97148.0,0.00172846]
[1733055605931,0.92173441,97149.0,97148.0,0.00172846]
[1733055606140,0.49931241,97149.0,97148.0,0.00172846]
[1733055606836,0.42898241,97149.0,97148.0,0.00172846]
[1733055607299,0.38198241,97149.0,97148.0,0.00172846]
[1733055607519,0.42778241,97149.0,97148.0,0.00172846]
[1733055609263,0.42478241,97149.0,97148.0,0.00172846]
[1733055609693,0.42878241,97149.0,97148.0,0.00172846]
[1733055610076,0.43578241,97149.0,97148.0,0.00172846]
[1733055610242,0.43178241,97149.0,97148.0,0.00172846]
[1733055610459,0.42478241,97149.0,97148.0,0.00172846]
[1733055610883,0.42578241,97149.0,97148.0,0.00172846]
[1733055613725,0.42778241,97149.0,97148.0,0.00172846]
[1733055614149,0.42578241,97149.0,97148.0,0.00172846]
[1733055614581,0.42678241,97149.0,97148.0,0.00172846]
[1733055616303,0.42578241,97149.0,97148.0,0.00172846]
[1733055616713,0.42678241,97149.0,97148.0,0.00172846]
[1733055618135,0.42578241,97149.0,97148.0,0.00172846]
[1733055619813,0.42478241,97149.0,97148.0,0.00172846]
[1733055620208,0.42878241,97149.0,97148.0,0.00172846]
[1733055620619,0.1518642,97149.0,97148.0,0.00172846]
[1733055620881,0.1538642,97149.0,97148.0,0.00172846]
[1733055621540,0.1528642,97149.0,97148.0,0.00172846]
[1733055621756,0.1508642,97149.0,97148.0,0.00172846]
[1733055622379,0.0008642,97149.0,97148.0,0.00172846]
[1733055622737,0.0018642,97149.0,97148.0,0.00172846]
[1733055623993,0.1518642,97149.0,97148.0,0.00172846]
[1733055631515,0.1518642,97149.0,97148.0,0.05112846]
[1733055631732,0.15506708,97149.0,97148.0,0.05112846]
[1733055632128,0.00506708,97149.0,97148.0,0.13702846]
[1733055632564,0.0018642,97149.0,97148.0,0.13702846]
[1733055632978,0.00453929,97149.0,97148.0,0.13702846]
[1733055633238,0.0018642,97149.0,97148.0,0.13702846]
[1733055633445,0.00453929,97149.0,97148.0,0.13702846]
[1733055633649,0.0018642,97149.0,97148.0,0.13702846]
[1733055633902,0.00453929,97149.0,97148.0,0.13702846]
[1733055634083,0.0018642,97149.0,97148.0,0.13702846]
[1733055634247,0.00453929,97149.0,97148.0,0.13702846]
[1733055635536,0.0018642,97149.0,97148.0,0.13702846]
[1733055635710,0.0018642,97149.0,97148.0,0.23987367]
[1733055638463,0.00446685,97149.0,97148.0,0.23987367]
[1733055638668,0.0018642,97149.0,97148.0,0.23987367]
[1733055639265,0.00446685,97149.0,97148.0,0.23987367]
[1733055639465,0.0018642,97149.0,97148.0,0.23987367]
[1733055639633,0.00446685,97149.0,97148.0,0.23987367]
[1733055639856,0.0018642,97149.0,97148.0,0.23987367]
[1733055642136,0.00447471,97149.0,97148.0,0.23987367]
[1733055642365,0.0018642,97149.0,97148.0,0.23987367]
[1733055642589,0.00447462,97149.0,97148.0,0.23987367]
[1733055642786,0.0018642,97149.0,97148.0,0.23987367]
[1733055643684,0.00447462,97149.0,97148.0,0.23987367]
[1733055643820,0.0018642,97149.0,97148.0,0.23987367]
[1733055644036,0.00447462,97149.0,97148.0,0.23987367]
[1733055644274,0.0018642,97149.0,97148.0,0.23987367]
[1733055644429,0.00447931,97149.0,97148.0,0.23987367]
[1733055644637,0.0018642,97149.0,97148.0,0.23987367]
[1733055645115,0.00447931,97149.0,97148.0,0.23987367]
[1733055655134,0.13107931,97149.0,97148.0,0.00172846]
[1733055655347,0.38620209,97149.0,97148.0,0.00172846]
[1733055655555,0.38392452,97149.0,97148.0,0.00172846]
[1733055656406,3.30626352,97149.0,97148.0,0.00172846]
[1733055656613,3.47755052,97149.0,97148.0,0.00172846]
[1733055657924,3.34219352,97149.0,97148.0,4.6e-07]
[1733055658096,0.38392452,97149.0,97148.0,4.6e-07]
[1733055658296,0.38792452,97149.0,97148.0,4.6e-07]
[1733055658759,0.38592452,97149.0,97148.0,4.6e-07]
[1733055658945,0.40473694,97149.0,97148.0,4.6e-07]
[1733055659348,0.40973694,97149.0,97148.0,4.6e-07]
[1733055659798,0.41873694,97149.0,97148.0,4.6e-07]
[1733055659939,0.355884,97142.0,97141.0,0.09705546]
[1733055660161,2.87013921,97142.0,97141.0,0.09719007]
[1733055660367,2.87273547,97142.0,97141.0,0.09719007]
[1733055660766,2.87273547,97142.0,97141.0,7e-08]
[1733055660987,0.58792547,97142.0,97141.0,7e-08]
[1733055662632,0.59692547,97142.0,97139.0,6.7e-07]
[1733055662849,0.355888,97140.0,97139.0,1.2e-07]
[1733055663076,0.58533321,97140.0,97139.0,1.2e-07]
[1733055663293,0.58791927,97140.0,97139.0,1.2e-07]
[1733055665402,0.59291927,97140.0,97139.0,1.2e-07]
[1733055666591,0.59591927,97140.0,97139.0,0.00172772]
[1733055667530,0.59591927,97140.0,97139.0,7.2e-07]
[1733055667751,4.63085827,97140.0,97139.0,7.2e-07]
[1733055668176,0.59091927,97140.0,97139.0,7.2e-07]
[1733055668623,0.59691927,97140.0,97139.0,7.2e-07]
[1733055668910,0.59391927,97140.0,97139.0,7.2e-07]
[1733055669168,0.59691927,97140.0,97139.0,7.2e-07]
[1733055669393,0.355899,97135.0,97134.0,0.09704872]
[1733055669613,0.479899,97135.0,97134.0,0.09710814]
[1733055669824,0.479899,97135.0,97130.0,8.99435314]
[1733055669825,0.605907,97131.0,97130.0,8.99435314]
[1733055670012,3.93406421,97131.0,97130.0,8.99453137]
[1733055670156,4.03132803,97131.0,97130.0,8.99453137]
[1733055670390,4.04132803,97131.0,97130.0,7.23853137]
[1733055670628,4.03905501,97131.0,97130.0,7.00694037]
[1733055670842,4.03905501,97131.0,97130.0,6.92457637]
[1733055671061,3.95001817,97131.0,97130.0,6.92457637]
[1733055671265,3.96077943,97131.0,97130.0,6.92457637]
[1733055671731,3.96077943,97131.0,97130.0,6.88339437]
[1733055671944,3.96077943,97131.0,97130.0,6.07172137]
[1733055672417,3.96977943,97131.0,97130.0,6.07172137]
[1733055672634,3.93489589,97131.0,97130.0,6.05113037]
[1733055673080,3.83206443,97131.0,97130.0,6.00994837]
[1733055673305,3.84006443,97131.0,97130.0,5.96876637]
[1733055674008,3.53145643,97131.0,97130.0,5.90699337]
[1733055674253,3.52345643,97131.0,97130.0,5.86581137]
[1733055674479,3.26552635,97131.0,97130.0,5.86581137]
[1733055674703,3.26092492,97131.0,97130.0,5.86581137]
[1733055674923,3.47583192,97131.0,97130.0,5.82462937]
[1733055675143,3.33176792,97131.0,97130.0,5.80403837]
[1733055675325,3.33176792,97131.0,97130.0,5.78344737]
[1733055675547,2.98364992,97131.0,97130.0,5.76285637]
[1733055675776,2.83426805,97131.0,97130.0,5.76285637]
[1733055675988,3.03476805,97131.0,97130.0,5.76285637]
[1733055677100,2.82349832,97131.0,97130.0,5.76285637]
[1733055677319,1.60963132,97131.0,97130.0,5.76285637]
[1733055677538,0.47350332,97131.0,97130.0,5.76285637]
[1733055677776,0.48017521,97131.0,97130.0,5.76285637]
[1733055678252,0.48017521,97131.0,97130.0,5.76458417]
[1733055678462,0.46217521,97131.0,97130.0,5.76458417]
[1733055678595,0.61617521,97131.0,97130.0,5.76458417]
[1733055678803,0.62517521,97131.0,97130.0,5.76458417]
[1733055679212,0.61617521,97131.0,97130.0,5.76458417]
[1733055679654,0.62317521,97131.0,97130.0,5.76458417]
[1733055680103,0.62317521,97131.0,97130.0,5.72340217]
[1733055680307,0.61917521,97131.0,97130.0,5.72340217]
[1733055680536,0.62317521,97131.0,97130.0,5.72340217]
[1733055681703,0.46975221,97131.0,97130.0,5.72340217]
[1733055681866,3.94237821,97131.0,97130.0,5.72340217]
[1733055682279,3.94473904,97131.0,97130.0,5.72340217]
[1733055684016,3.58694804,97131.0,97130.0,5.72340217]
[1733055684274,1.99828804,97131.0,97130.0,5.72340217]
[1733055684476,1.82710604,97131.0,97130.0,5.72340217]
[1733055684683,1.53939004,97131.0,97130.0,5.72340217]
[1733055685419,0.70188704,97131.0,97130.0,5.84590217]
[1733055685635,0.39376783,97131.0,97130.0,5.84590217]
[1733055685863,0.391407,97131.0,97130.0,5.84590217]
[1733055686307,0.387407,97131.0,97130.0,5.84590217]
[1733055686534,0.380407,97131.0,97130.0,5.84590217]
[1733055686981,0.381407,97131.0,97130.0,5.84590217]
[1733055687211,0.531407,97131.0,97130.0,5.84590217]
[1733055687394,0.356907,97131.0,97130.0,5.84590217]
[1733055687742,0.357907,97131.0,97130.0,5.84590217]
[1733055690751,0.358771,97131.0,97130.0,5.84590217]
[1733055695298,0.357771,97131.0,97130.0,5.84590217]
[1733055695509,0.358771,97131.0,97130.0,5.84590217]
[1733055696145,0.356771,97131.0,97130.0,5.84590217]
[1733055697007,0.357771,97131.0,97130.0,5.84590217]
[1733055697457,0.356771,97131.0,97130.0,5.84590217]
[1733055697845,0.356771,97131.0,97130.0,5.84690217]
[1733055703013,0.205903,97133.0,97130.0,5.84690217]
[1733055703014,0.062674,97133.0,97130.0,5.84690217]
[1733055703235,0.0022778,97136.0,97130.0,5.84690217]
[1733055703444,0.0975,97140.0,97130.0,5.84690217]
[1733055703445,0.0022778,97139.0,97130.0,5.84690217]
[1733055703582,0.000864,97131.0,97130.0,5.84690217]
[1733055703995,0.206771,97131.0,97130.0,5.84690217]
[1733055704417,0.000864,97131.0,97130.0,5.84590217]
[1733055706221,0.000864,97131.0,97130.0,5.85590217]
[1733055707521,0.000864,97131.0,97130.0,5.85690217]
[1733055710145,0.000864,97131.0,97130.0,5.84690217]
[1733055714048,0.15314184,97131.0,97130.0,5.84690217]
[1733055714297,1.08296384,97131.0,97130.0,5.84690217]
[1733055714505,1.080686,97131.0,97130.0,5.84690217]
[1733055714720,1.0210082,97131.0,97130.0,5.84690217]
[1733055714946,0.9960082,97131.0,97130.0,5.84690217]
[1733055716920,0.8840772,97131.0,97130.0,5.84690217]
[1733055719465,0.1537352,97131.0,97130.0,5.84690217]
[1733055719659,0.15601311,97131.0,97130.0,5.84690217]
[1733055719863,1.26033591,97131.0,97130.0,5.84690217]
[1733055720104,0.150864,97131.0,97130.0,5.84690217]
[1733055720321,0.1537352,97131.0,97130.0,5.84690217]
[1733055720534,0.150864,97131.0,97130.0,5.84690217]
[1733055732938,0.150864,97131.0,97130.0,5.85690217]
[1733055734193,0.000864,97131.0,97130.0,5.85690217]
[1733055735576,0.000864,97131.0,97130.0,5.95974738]
[1733055736641,0.000864,97131.0,97130.0,5.85690217]
[1733055737510,0.000864,97131.0,97130.0,5.85590217]
[1733055737713,0.001864,97131.0,97130.0,5.85590217]
[1733055737933,0.002864,97131.0,97130.0,5.85790217]
[1733055747130,0.002864,97131.0,97130.0,5.72540217]
[1733055747383,0.01272391,97131.0,97130.0,5.72540217]
[1733055748715,0.01172391,97131.0,97130.0,5.72340217]
[1733055749135,0.01172391,97131.0,97130.0,5.72440217]
[1733055749348,0.01172391,97131.0,97130.0,5.72340217]
[1733055749758,0.01172391,97131.0,97130.0,5.72440217]
[1733055750484,0.33278491,97131.0,97130.0,5.72440217]
[1733055751814,0.33178491,97131.0,97130.0,5.72440217]
[1733055753578,0.33178491,97131.0,97130.0,5.72340217]
[1733055754031,0.01072391,97131.0,97130.0,5.72340217]
[1733055754246,0.28313588,97131.0,97130.0,5.72340217]
[1733055754466,0.260244,97131.0,97130.0,5.72340217]
[1733055755646,0.150864,97131.0,97130.0,5.72340217]
[1733055755865,0.000864,97131.0,97130.0,5.72340217]
[1733055757371,0.000864,97131.0,97130.0,5.72440217]
[1733055758056,0.00314188,97131.0,97130.0,5.72440217]
[1733055758924,2.52994488,97131.0,97130.0,5.72440217]
[1733055759132,2.527667,97131.0,97130.0,5.72440217]
[1733055759339,2.53059745,97131.0,97130.0,5.72440217]
[1733055759990,2.53059745,97131.0,97130.0,5.72340217]
[1733055760257,2.45269145,97131.0,97130.0,5.72340217]
[1733055760475,2.45469145,97131.0,97130.0,5.72340217]
[1733055760674,2.44539145,97131.0,97130.0,5.72340217]
[1733055760886,2.44439145,97131.0,97130.0,5.72340217]
[1733055761301,2.45039145,97131.0,97130.0,5.72340217]
[1733055761728,2.34237345,97131.0,97130.0,5.72340217]
[1733055761954,2.20137345,97131.0,97130.0,5.72340217]
[1733055762168,2.20437345,97131.0,97130.0,5.72340217]
[1733055762822,2.20137345,97131.0,97130.0,5.72340217]
[1733055763038,2.04746945,97131.0,97130.0,5.72340217]
[1733055763233,1.30949645,97131.0,97130.0,5.72340217]
[1733055763442,0.47759045,97131.0,97130.0,5.72340217]
[1733055763678,0.47759045,97131.0,97130.0,5.85670217]
[1733055763896,0.00579445,97131.0,97130.0,5.85670217]
[1733055764143,0.002864,97131.0,97130.0,5.85670217]
[1733055764372,0.001864,97131.0,97130.0,5.85670217]
[1733055764819,0.001864,97131.0,97130.0,5.85770217]
[1733055765273,0.000864,97131.0,97130.0,5.85770217]
[1733055765933,0.001864,97131.0,97130.0,5.85770217]
[1733055766541,0.000864,97131.0,97130.0,5.85770217]
[1733055769435,0.00314183,97131.0,97130.0,5.84770217]
[1733055769603,2.34852083,97131.0,97130.0,5.84770217]
[1733055769779,2.08361597,97131.0,97130.0,5.84770217]
[1733055770412,1.56712397,97131.0,97130.0,5.84770217]
[1733055770824,1.03335197,97131.0,97130.0,5.84770217]
[1733055772948,1.03335197,97131.0,97130.0,5.72440217]
[1733055776249,1.05704797,97131.0,97130.0,5.72440217]
[1733055776597,0.00370697,97131.0,97130.0,5.84770217]
[1733055776822,0.353599,97131.0,97130.0,5.84770217]
[1733055777044,0.503599,97131.0,97130.0,5.84770217]
[1733055778531,0.000864,97131.0,97130.0,5.85770217]
[1733055807350,0.000864,97131.0,97130.0,5.65729063]
[1733055807351,0.16916158,97131.0,97130.0,5.65729063]
[1733055807586,5.06594897,97131.0,97130.0,5.42107353]
[1733055807797,5.31358815,97131.0,97130.0,5.42107353]
[1733055808012,5.31725315,97131.0,97130.0,5.42107353]
[1733055808666,5.32525315,97131.0,97130.0,5.42107353]
[1733055809166,5.31725315,97131.0,97130.0,5.33770953]
[1733055809414,5.31725315,97131.0,97130.0,5.31711853]
[1733055809415,5.57625315,97131.0,97130.0,5.31711853]
[1733055809624,5.57625315,97131.0,97130.0,4.56721853]
[1733055809625,5.63139726,97131.0,97130.0,4.56721853]
[1733055809864,5.62239726,97131.0,97130.0,3.56956353]
[1733055810124,5.80809731,97131.0,97130.0,3.56956353]
[1733055810359,5.14083826,97131.0,97130.0,3.56956353]
[1733055810551,5.13183826,97131.0,97130.0,3.56956353]
[1733055810796,4.79505115,97131.0,97130.0,3.46660853]
[1733055811023,4.80405115,97131.0,97130.0,3.46660853]
[1733055811520,4.81005115,97131.0,97130.0,3.46660853]
[1733055811737,4.58486115,97131.0,97130.0,3.46660853]
[1733055811948,4.57519615,97131.0,97130.0,3.40483553]
[1733055812164,4.18155415,97131.0,97130.0,3.36365353]
[1733055812420,4.05518661,97131.0,97130.0,3.36365353]
[1733055812640,4.04618661,97131.0,97130.0,3.36365353]
[1733055812884,4.05518661,97131.0,97130.0,3.30188053]
[1733055813114,4.05518661,97131.0,97130.0,3.26069853]
[1733055813115,3.13189715,97131.0,97130.0,3.26069853]
[1733055814105,3.12289715,97131.0,97130.0,3.21951653]
[1733055814590,3.12289715,97131.0,97130.0,3.15774353]
[1733055814784,3.13189715,97131.0,97130.0,3.13715253]
[1733055815296,3.13189715,97131.0,97130.0,3.09597053]
[1733055815528,3.13189715,97131.0,97130.0,3.05478853]
[1733055815725,3.07108115,97131.0,97130.0,3.03419753]
[1733055815855,3.06064715,97131.0,97130.0,3.01360653]
[1733055816102,3.06064715,97131.0,97130.0,2.97242453]
[1733055816305,3.15814715,97131.0,97130.0,2.95183353]
[1733055816507,3.02583215,97131.0,97130.0,2.95183353]
[1733055816774,3.02583215,97131.0,97130.0,2.93124253]
[1733055816976,3.03483215,97131.0,97130.0,2.93124253]
[1733055817414,2.72038715,97131.0,97130.0,2.93124253]
[1733055817629,2.71050821,97131.0,97130.0,2.93124253]
[1733055817748,2.61300821,97131.0,97130.0,2.93124253]
[1733055819019,2.76300821,97131.0,97130.0,2.93124253]
[1733055820160,0.77170921,97131.0,97130.0,2.93124253]
[1733055820549,4.01184221,97131.0,97130.0,2.93124253]
[1733055820774,4.24785121,97131.0,97130.0,2.93124253]
[1733055821540,4.22073921,97131.0,97130.0,2.93124253]
[1733055821978,2.95700321,97131.0,97130.0,2.93124253]
[1733055823220,3.05450321,97131.0,97130.0,2.93124253]
[1733055824073,3.04550321,97131.0,97130.0,2.93124253]
[1733055824323,3.05450321,97131.0,97130.0,2.93124253]
[1733055827548,2.80450321,97131.0,97130.0,2.93124253]
[1733055827760,1.17861521,97131.0,97130.0,3.05414253]
[1733055827998,0.40026321,97131.0,97130.0,3.05414253]
[1733055828224,0.40926321,97131.0,97130.0,3.05414253]
[1733055828698,0.40026321,97131.0,97130.0,3.05414253]
[1733055829114,0.55926321,97131.0,97130.0,3.05414253]
[1733055830044,0.55026321,97131.0,97130.0,3.05414253]
[1733055830258,0.54126321,97131.0,97130.0,3.05414253]
[1733055830464,0.55426321,97131.0,97130.0,3.05414253]
[1733055830712,0.55426321,97131.0,97130.0,2.93124253]
[1733055831651,0.56414779,97131.0,97130.0,2.93124253]
[1733055839157,0.56414779,97131.0,97130.0,2.97824253]
[1733055839368,0.44010321,97131.0,97130.0,3.05384253]
[1733055841522,0.44010321,97131.0,97130.0,3.05358344]
[1733055841747,0.26670921,97131.0,97130.0,3.05358344]
[1733055841964,1.31804021,97131.0,97130.0,3.05358344]
[1733055842452,0.55540521,97131.0,97130.0,3.05358344]
[1733055843113,0.49764621,97131.0,97130.0,3.05358344]
[1733055843344,0.013864,97131.0,97130.0,3.05358344]
[1733055845204,0.013864,97131.0,97130.0,3.06358344]
[1733055845630,0.008864,97131.0,97130.0,3.06358344]
[1733055845856,0.000864,97131.0,97130.0,3.06358344]
[1733055846069,0.002864,97131.0,97130.0,3.06358344]
[1733055846696,0.000864,97131.0,97130.0,3.06358344]
[1733055852538,0.15,97132.0,97131.0,0.010136]